fUSD/lending_fUSD_20250716
["ID","MTS","AMOUNT","RATE_DAILY","PERIOD"]
[372457053,1752649859143,-840.0,0.00022,2]
[372457054,1752649859153,-3776.95744318,0.00022006,4]
[372457055,1752649859163,-3855.02701549,0.00022006,4]
[372457056,1752649859173,-4130.82834616,0.00022006,4]
[372457057,1752649859183,-150.0,0.00022006,2]
[372457058,1752649859193,-150.0,0.00022006,2]
[372457059,1752649859203,-150.0,0.00022008,2]
[372457060,1752649859213,-327.9233043,0.00022008,2]
[372457061,1752649859222,-150.0,0.00022009,2]
[372457062,1752649859232,-150.0,0.00022011,2]
[372457063,1752649859242,-1000.0,0.00022012,2]
[372457064,1752649859252,-150.0,0.00022018,2]
[372457065,1752649859263,-150.0,0.00022019,2]
[372457066,1752649859272,-150.0,0.0002202,2]
[372457067,1752649859282,-150.0,0.00022021,2]
[372457068,1752649859293,-150.0,0.00022021,2]
[372457069,1752649859303,-151.0,0.00022024,2]
[372457070,1752649859313,-150.0,0.00022025,2]
[372457071,1752649859323,-308.0,0.00022026,2]
[372457072,1752649859333,-150.0,0.00022028,2]
[372457073,1752649859343,-150.0,0.00022032,2]
[372457074,1752649859353,-1121.54827395,0.00022036,2]
[372457075,1752649859362,-150.0,0.00022039,2]
[372457076,1752649859372,-150.0,0.00022039,2]
[372457077,1752649859382,-208.0,0.0002204,2]
[372457078,1752649859391,-164.27653644,0.00022044,2]
[372457079,1752649859401,-150.0,0.00022047,2]
[372457080,1752649859411,-841.05,0.00022049,2]
[372457081,1752649859421,-150.0,0.00022049,2]
[372457082,1752649859430,-150.0,0.00022051,2]
[372457083,1752649859440,-150.0,0.00022051,2]
[372457084,1752649859450,-150.0,0.00022052,2]
[372457085,1752649859460,-500.0,0.00022053,2]
[372457086,1752649859470,-500.0,0.00022053,2]
[372457087,1752649859484,-385.70572082,0.00022053,2]
[372457088,1752649859494,-500.0,0.00022053,2]
[372457089,1752649859504,-500.0,0.00022053,2]
[372457090,1752649859513,-500.0,0.00022053,2]
[372457091,1752649859523,-500.0,0.00022053,2]
[372457092,1752649859533,-500.0,0.00022053,2]
[372457093,1752649859543,-500.0,0.00022053,2]
[372457094,1752649859553,-500.0,0.00022053,2]
[372457095,1752649859564,-151.0,0.00022053,7]
[372457096,1752649859574,-151.0,0.00022053,7]
[372457097,1752649859584,-672.14,0.00022053,2]
[372457098,1752649859594,-672.14,0.00022053,2]
[372457099,1752649859605,-672.14,0.00022053,2]
[372457100,1752649859615,-672.14,0.00022053,2]
[372457101,1752649859624,-672.14,0.00022053,2]
[372457102,1752649859634,-672.14,0.00022053,2]
[372457103,1752649859644,-672.14,0.00022053,2]
[372457104,1752649859654,-300.0,0.00022053,2]
[372457105,1752649859663,-841.05,0.00022053,2]
[372457106,1752649859674,-841.05,0.00022053,2]
[372457107,1752649859684,-841.05,0.00022053,2]
[372457108,1752649859695,-841.05,0.00022053,2]
[372457109,1752649859704,-841.05,0.00022053,2]
[372457110,1752649859714,-841.05,0.00022053,2]
[372457111,1752649859724,-841.05,0.00022053,2]
[372457112,1752649859733,-841.05,0.00022053,2]
[372457113,1752649859743,-841.13025427,0.00022053,2]
[372457114,1752649859753,-151.253959,0.00022053,7]
[372457115,1752649859764,-151.0,0.00022053,7]
[372457116,1752649859774,-151.0,0.00022053,7]
[372457117,1752649859783,-151.0,0.00022053,7]
[372457118,1752649859793,-151.0,0.00022053,2]
[372457119,1752649859803,-298.101703,0.00022053,7]
[372457120,1752649859812,-298.101703,0.00022053,7]
[372457121,1752649859822,-1776.457186,0.00022053,7]
[372457122,1752649859831,-1776.457186,0.00022053,7]
[372457123,1752649859841,-151.0,0.00022053,7]
[372457124,1752649859851,-151.0,0.00022053,7]
[372457125,1752649859861,-500.0,0.00022053,2]
[372457126,1752649859871,-500.0,0.00022053,2]
[372457127,1752649859881,-500.0,0.00022053,2]
[372457128,1752649859890,-607.11076354,0.00022053,2]
[372457129,1752649859899,-745.4,0.00022053,2]
[372457130,1752649859909,-745.4,0.00022053,2]
[372457131,1752649859918,-745.4,0.00022053,2]
[372457132,1752649859928,-745.4,0.00022053,2]
[372457133,1752649859938,-745.4,0.00022053,2]
[372457134,1752649859947,-745.4,0.00022053,2]
[372457135,1752649859957,-745.4,0.00022053,2]
[372457136,1752649859966,-151.0,0.00022053,7]
[372457137,1752649859976,-151.0,0.00022053,7]
[372457138,1752649859986,-500.0,0.00022053,2]
[372457139,1752649859996,-151.0,0.00022053,7]
[372457140,1752649860006,-153.57698,0.00022053,7]
[372457141,1752649860017,-150.0,0.00022053,2]
[372457142,1752649860027,-174.84070238,0.00022053,2]
[372457143,1752649860037,-151.0,0.00022054,7]
[372457144,1752649860047,-151.0,0.00022054,7]
[372457145,1752649860057,-151.0,0.00022054,7]
[372457146,1752649860067,-151.0,0.00022054,7]
[372457147,1752649860076,-301.717814,0.00022054,7]
[372457148,1752649860086,-151.0,0.00022054,7]
[372457149,1752649860096,-212.616188,0.00022054,7]
[372457150,1752649860106,-212.616188,0.00022054,7]
[372457151,1752649860116,-212.616188,0.00022054,7]
[372457152,1752649860127,-212.616188,0.00022054,7]
[372457153,1752649860137,-1000.0,0.00022054,2]
[372457154,1752649860147,-460.0,0.00022054,2]
[372457155,1752649860157,-460.0,0.00022054,2]
[372457156,1752649860167,-151.0,0.00022054,7]
[372457157,1752649860177,-460.0,0.00022054,2]
[372457158,1752649860186,-598.62,0.00022054,2]
[372457159,1752649860196,-511.69,0.00022054,2]
[372457160,1752649860206,-184.14818,0.00022054,7]
[372457161,1752649860216,-184.14818,0.00022054,7]
[372457162,1752649860226,-184.14818,0.00022054,7]
[372457163,1752649860236,-184.14818,0.00022054,7]
[372457164,1752649860247,-1239.7,0.00022054,2]
[372457165,1752649860258,-151.0,0.00022054,7]
[372457166,1752649860273,-151.0,0.00022054,7]
[372457167,1752649860638,-151.0,0.00022054,7]
[372457168,1752649860652,-151.0,0.00022054,7]
[372457169,1752649860663,-151.0,0.00022054,7]
[372457170,1752649860672,-151.0,0.00022054,7]
[372457171,1752649860682,-151.0,0.00022054,7]
[372457172,1752649860691,-814.18,0.00022054,2]
[372457173,1752649860701,-460.0,0.00022054,2]
[372457174,1752649860710,-460.0,0.00022054,2]
[372457175,1752649860720,-460.0,0.00022054,2]
[372457176,1752649860729,-151.0,0.00022054,7]
[372457177,1752649860739,-273.080682,0.00022054,7]
[372457178,1752649860748,-533.86,0.00022054,2]
[372457179,1752649860758,-151.0,0.00022054,7]
[372457180,1752649860771,-226.184216,0.00022054,7]
[372457181,1752649860781,-226.184216,0.00022054,7]
[372457182,1752649860791,-226.184216,0.00022054,7]
[372457183,1752649860801,-226.184216,0.00022054,7]
[372457184,1752649860811,-177.171007,0.00022054,7]
[372457185,1752649860822,-156.585107,0.00022054,7]
[372457186,1752649860831,-156.585107,0.00022054,7]
[372457187,1752649860841,-156.585107,0.00022054,7]
[372457188,1752649860850,-156.585107,0.00022054,7]
[372457189,1752649860860,-151.0,0.00022054,7]
[372457190,1752649860869,-151.0,0.00022054,7]
[372457191,1752649860879,-177.171007,0.00022054,7]
[372457192,1752649860889,-460.0,0.00022054,2]
[372457193,1752649860899,-177.171007,0.00022054,7]
[372457194,1752649860908,-177.171007,0.00022054,7]
[372457195,1752649860918,-181.944592,0.00022054,7]
[372457196,1752649860928,-181.944592,0.00022054,7]
[372457197,1752649860938,-460.0,0.00022054,2]
[372457198,1752649860947,-181.944592,0.00022054,7]
[372457199,1752649860957,-181.944592,0.00022054,7]
[372457200,1752649860967,-679.16,0.00022054,2]
[372457201,1752649860977,-460.0,0.00022054,2]
[372457202,1752649860986,-151.0,0.00022054,7]
[372457203,1752649860996,-460.0,0.00022054,2]
[372457204,1752649861006,-460.0,0.00022054,2]
[372457205,1752649861017,-460.0,0.00022054,2]
[372457206,1752649861026,-460.0,0.00022054,2]
[372457207,1752649861036,-704.52,0.00022054,2]
[372457208,1752649861045,-460.0,0.00022054,2]
[372457209,1752649861055,-460.0,0.00022054,2]
[372457210,1752649861065,-257.22585,0.00022054,7]
[372457211,1752649861075,-460.0,0.00022054,2]
[372457212,1752649861085,-151.0,0.00022054,7]
[372457213,1752649861095,-151.0,0.00022054,7]
[372457214,1752649861104,-151.0,0.00022054,7]
[372457215,1752649861116,-151.0,0.00022054,7]
[372457216,1752649861125,-460.0,0.00022054,2]
[372457217,1752649861135,-460.0,0.00022054,2]
[372457218,1752649861145,-151.0,0.00022054,7]
[372457219,1752649861155,-151.0,0.00022054,7]
[372457220,1752649861165,-460.0,0.00022054,2]
[372457221,1752649861175,-460.0,0.00022054,2]
[372457222,1752649861185,-460.0,0.00022054,2]
[372457223,1752649861195,-151.0,0.00022054,7]
[372457224,1752649861205,-151.0,0.00022054,7]
[372457225,1752649861215,-460.0,0.00022054,2]
[372457226,1752649861225,-151.0,0.00022054,7]
[372457227,1752649861235,-151.0,0.00022054,7]
[372457228,1752649861245,-152.847074,0.00022054,7]
[372457229,1752649861255,-151.0,0.00022054,7]
[372457230,1752649861265,-460.0,0.00022054,2]
[372457231,1752649861274,-460.0,0.00022054,2]
[372457232,1752649861283,-460.0,0.00022054,2]
[372457233,1752649861294,-151.0,0.00022054,7]
[372457234,1752649861304,-1553.78,0.00022054,2]
[372457235,1752649861314,-151.0,0.00022054,7]
[372457236,1752649861324,-248.96763861,0.00022054,2]
[372457237,1752649861334,-151.532438,0.00022054,7]
[372457238,1752649861343,-460.0,0.00022054,2]
[372457239,1752649861353,-501.82,0.00022054,2]
[372457240,1752649861363,-884.36,0.00022054,2]
[372457241,1752649861372,-151.0,0.00022054,7]
[372457242,1752649861382,-151.0,0.00022054,7]
[372457243,1752649861391,-493.05370651,0.00022054,2]
[372457244,1752649861402,-1511.57,0.00022054,2]
[372457245,1752649861412,-460.0,0.00022054,2]
[372457246,1752649861422,-460.0,0.00022054,2]
[372457247,1752649861432,-460.0,0.00022054,2]
[372457248,1752649861441,-515.5,0.00022054,2]
[372457249,1752649861451,-823.43,0.00022054,2]
[372457250,1752649861461,-1258.33853,0.00022054,7]
[372457251,1752649861470,-1258.33853,0.00022054,7]
[372457252,1752649861482,-784.12,0.00022054,2]
[372457253,1752649861494,-1258.33853,0.00022054,7]
[372457254,1752649861503,-460.0,0.00022054,2]
[372457255,1752649861515,-1258.33853,0.00022054,7]
[372457256,1752649861527,-430.91846146,0.00022054,2]
[372457257,1752649861537,-151.0,0.00022054,7]
[372457258,1752649861548,-151.0,0.00022054,7]
[372457259,1752649861558,-526.16404302,0.00022054,2]
[372457260,1752649861568,-460.0,0.00022054,2]
[372457261,1752649861578,-992.54,0.00022054,2]
[372457262,1752649861587,-460.0,0.00022054,2]
[372457263,1752649861597,-495.08,0.00022054,2]
[372457264,1752649861607,-460.0,0.00022054,2]
[372457265,1752649861616,-192.77679141,0.00022054,2]
[372457266,1752649861626,-462.97335058,0.00022054,2]
[372457267,1752649861636,-1577.03,0.00022054,2]
[372457268,1752649861646,-578.03,0.00022054,2]
[372457269,1752649861656,-991.08,0.00022054,2]
[372457270,1752649861666,-482.68,0.00022054,2]
[372457271,1752649861675,-160.064543,0.00022054,7]
[372457272,1752649861684,-160.064543,0.00022054,7]
[372457273,1752649861694,-151.0,0.00022054,7]
[372457274,1752649861704,-460.0,0.00022054,2]
[372457275,1752649861714,-151.0,0.00022054,7]
[372457276,1752649861723,-460.0,0.00022054,2]
[372457277,1752649861733,-160.064543,0.00022054,7]
[372457278,1752649861743,-160.064543,0.00022054,7]
[372457279,1752649861752,-460.0,0.00022054,2]
[372457280,1752649861762,-912.69,0.00022054,2]
[372457281,1752649861776,-151.0,0.00022054,7]
[372457282,1752649861786,-151.0,0.00022054,7]
[372457283,1752649861796,-151.0,0.00022054,7]
[372457284,1752649861806,-151.0,0.00022054,7]
[372457285,1752649861816,-151.0,0.00022054,7]
[372457286,1752649861826,-151.0,0.00022054,7]
[372457287,1752649861836,-151.0,0.00022054,7]
[372457288,1752649861846,-151.0,0.00022054,7]
[372457289,1752649861856,-460.0,0.00022054,2]
[372457290,1752649861865,-460.0,0.00022054,2]
[372457291,1752649861875,-151.0,0.00022054,7]
[372457292,1752649861886,-530.64,0.00022054,2]
[372457293,1752649861895,-460.0,0.00022054,2]
[372457294,1752649861905,-460.0,0.00022054,2]
[372457295,1752649861916,-151.0,0.00022054,7]
[372457296,1752649861925,-162.084367,0.00022054,7]
[372457297,1752649861935,-784.52,0.00022054,2]
[372457298,1752649861945,-464.3567246,0.00022054,2]
[372457299,1752649861956,-462.94,0.00022054,2]
[372457300,1752649861966,-460.0,0.00022054,2]
[372457301,1752649861977,-460.0,0.00022054,2]
[372457302,1752649861987,-988.33,0.00022054,2]
[372457303,1752649861998,-803.35,0.00022054,2]
[372457304,1752649862007,-460.0,0.00022054,2]
[372457305,1752649862020,-460.0,0.00022054,2]
[372457306,1752649862030,-460.0,0.00022054,2]
[372457307,1752649862040,-460.0,0.00022054,2]
[372457308,1752649862050,-834.72,0.00022054,2]
[372457309,1752649862060,-460.0,0.00022054,2]
[372457310,1752649862070,-460.0,0.00022054,2]
[372457311,1752649862080,-460.0,0.00022054,2]
[372457312,1752649862090,-460.0,0.00022054,2]
[372457313,1752649862100,-460.0,0.00022054,2]
[372457314,1752649862109,-460.0,0.00022054,2]
[372457315,1752649862119,-151.0,0.00022054,7]
[372457316,1752649862128,-151.0,0.00022054,7]
[372457317,1752649862139,-460.0,0.00022054,2]
[372457318,1752649862151,-460.0,0.00022054,2]
[372457319,1752649862161,-460.0,0.00022054,2]
[372457320,1752649862171,-151.0,0.00022054,7]
[372457321,1752649862181,-460.0,0.00022054,2]
[372457322,1752649862191,-151.0,0.00022054,7]
[372457323,1752649862200,-783.54,0.00022054,2]
[372457324,1752649862210,-151.0,0.00022054,7]
[372457325,1752649862220,-460.0,0.00022054,2]
[372457326,1752649862231,-460.0,0.00022054,2]
[372457327,1752649862241,-1313.58,0.00022054,2]
[372457328,1752649862251,-460.0,0.00022054,2]
[372457329,1752649862261,-460.0,0.00022054,2]
[372457330,1752649862274,-717.43,0.00022054,2]
[372457331,1752649862284,-1334.98,0.00022054,2]
[372457332,1752649862294,-175.669267,0.00022054,7]
[372457333,1752649862304,-175.669267,0.00022054,7]
[372457334,1752649862314,-463.62740714,0.00022054,2]
[372457335,1752649862324,-1194.41,0.00022054,2]
[372457336,1752649862334,-175.669267,0.00022054,7]
[372457337,1752649862343,-175.669267,0.00022054,7]
[372457338,1752649862352,-460.0,0.00022054,2]
[372457339,1752649862362,-802.45,0.00022054,2]
[372457340,1752649862373,-2860.37,0.00022054,2]
[372457341,1752649862384,-460.0,0.00022054,2]
[372457342,1752649862396,-462.14202721,0.00022054,2]
[372457343,1752649862406,-151.0,0.00022054,7]
[372457344,1752649862416,-461.32401831,0.00022054,2]
[372457345,1752649862425,-728.62,0.00022054,2]
[372457346,1752649862435,-460.0,0.00022054,2]
[372457347,1752649862444,-507.19,0.00022054,2]
[372457348,1752649862455,-577.91,0.00022054,2]
[372457349,1752649862464,-151.0,0.00022054,7]
[372457350,1752649862475,-151.0,0.00022054,7]
[372457351,1752649862488,-460.0,0.00022054,2]
[372457352,1752649862498,-935.27,0.00022054,2]
[372457353,1752649862508,-627.14,0.00022054,2]
[372457354,1752649862521,-911.4,0.00022054,2]
[372457355,1752649862531,-460.0,0.00022054,2]
[372457356,1752649862540,-151.0,0.00022054,7]
[372457357,1752649862549,-269.564517,0.00022054,7]
[372457358,1752649862561,-460.0,0.00022054,2]
[372457359,1752649862571,-460.0,0.00022054,2]
[372457360,1752649862583,-460.0,0.00022054,2]
[372457361,1752649862593,-460.0,0.00022054,2]
[372457362,1752649862603,-460.0,0.00022054,2]
[372457363,1752649862613,-460.0,0.00022054,2]
[372457364,1752649862622,-460.0,0.00022054,2]
[372457365,1752649862632,-460.0,0.00022054,2]
[372457366,1752649862642,-975.55,0.00022054,2]
[372457367,1752649862651,-468.23,0.00022054,2]
[372457368,1752649862661,-460.0,0.00022054,2]
[372457369,1752649862671,-460.0,0.00022054,2]
[372457370,1752649862681,-460.0,0.00022054,2]
[372457371,1752649862690,-553.9,0.00022054,2]
[372457372,1752649862699,-460.0,0.00022054,2]
[372457373,1752649862709,-508.69,0.00022054,2]
[372457374,1752649862718,-715.3,0.00022054,2]
[372457375,1752649862728,-575.23,0.00022054,2]
[372457376,1752649862738,-460.0,0.00022054,2]
[372457377,1752649862747,-460.0,0.00022054,2]
[372457378,1752649862757,-502.01,0.00022054,2]
[372457379,1752649862768,-1125.08,0.00022054,2]
[372457380,1752649862778,-457.42,0.00022054,2]
[372457381,1752649862788,-460.0,0.00022054,2]
[372457382,1752649862798,-460.0,0.00022054,2]
[372457383,1752649862807,-461.82,0.00022054,2]
[372457384,1752649862818,-460.0,0.00022054,2]
[372457385,1752649862827,-722.95,0.00022054,2]
[372457386,1752649862837,-460.0,0.00022054,2]
[372457387,1752649862847,-1501.77,0.00022054,2]
[372457388,1752649862857,-460.0,0.00022054,2]
[372457389,1752649862867,-1245.76,0.00022054,2]
[372457390,1752649862877,-460.0,0.00022054,2]
[372457391,1752649862886,-460.0,0.00022054,2]
[372457392,1752649862895,-276.25260016,0.00022054,2]
[372457393,1752649862905,-275.99985865,0.00022054,2]
[372457394,1752649862914,-1345.7,0.00022054,2]
[372457395,1752649862924,-546.51,0.00022054,2]
[372457396,1752649862934,-460.0,0.00022054,2]
[372457397,1752649862943,-462.31976494,0.00022054,2]
[372457398,1752649862952,-460.0,0.00022054,2]
[372457399,1752649862962,-222.58554164,0.00022054,2]
[372457400,1752649862973,-596.08,0.00022054,2]
[372457401,1752649862984,-460.0,0.00022054,2]
[372457402,1752649862995,-460.0,0.00022054,2]
[372457403,1752649863005,-460.0,0.00022054,2]
[372457404,1752649863016,-460.0,0.00022054,2]
[372457405,1752649863026,-1090.55,0.00022054,2]
[372457406,1752649863036,-151.0,0.00022054,7]
[372457407,1752649863047,-151.0,0.00022054,7]
[372457408,1752649863058,-460.0,0.00022054,2]
[372457409,1752649863069,-460.0,0.00022054,2]
[372457410,1752649863180,-151.0,0.00022054,7]
[372457411,1752649863190,-151.0,0.00022054,7]
[372457412,1752649863201,-496.33,0.00022054,2]
[372457413,1752649863211,-462.4035856,0.00022054,2]
[372457414,1752649863221,-479.45,0.00022054,2]
[372457415,1752649863231,-1043.61,0.00022054,2]
[372457416,1752649863240,-461.63219347,0.00022054,2]
[372457417,1752649863250,-463.2396678,0.00022054,2]
[372457418,1752649863261,-1935.25,0.00022054,2]
[372457419,1752649863272,-460.0,0.00022054,2]
[372457420,1752649863284,-460.0,0.00022054,2]
[372457421,1752649863294,-460.0,0.00022054,2]
[372457422,1752649863305,-460.0,0.00022054,2]
[372457423,1752649863315,-763.36,0.00022054,2]
[372457424,1752649863325,-731.55,0.00022054,2]
[372457425,1752649863335,-460.0,0.00022054,2]
[372457426,1752649863345,-462.63349962,0.00022054,2]
[372457427,1752649863354,-460.0,0.00022054,2]
[372457428,1752649863364,-460.0,0.00022054,2]
[372457429,1752649863374,-460.0,0.00022054,2]
[372457430,1752649863384,-460.0,0.00022054,2]
[372457431,1752649863394,-460.0,0.00022054,2]
[372457432,1752649863403,-636.67,0.00022054,2]
[372457433,1752649863413,-2842.23,0.00022054,2]
[372457434,1752649863423,-462.71561339,0.00022054,2]
[372457435,1752649863433,-154.871895,0.00022054,7]
[372457436,1752649863443,-1164.48,0.00022054,2]
[372457437,1752649863452,-2073.55,0.00022054,2]
[372457438,1752649863462,-460.0,0.00022054,2]
[372457439,1752649863472,-460.0,0.00022054,2]
[372457440,1752649863482,-460.0,0.00022054,2]
[372457441,1752649863494,-462.78904692,0.00022054,2]
[372457442,1752649863505,-460.0,0.00022054,2]
[372457443,1752649863515,-460.0,0.00022054,2]
[372457444,1752649863525,-480.48,0.00022054,2]
[372457445,1752649863535,-1407.98,0.00022054,2]
[372457446,1752649863545,-460.0,0.00022054,2]
[372457447,1752649863555,-977.88,0.00022054,2]
[372457448,1752649863566,-460.0,0.00022054,2]
[372457449,1752649863576,-460.0,0.00022054,2]
[372457450,1752649863586,-460.0,0.00022054,2]
[372457451,1752649863595,-460.0,0.00022054,2]
[372457452,1752649863605,-460.0,0.00022054,2]
[372457453,1752649863615,-460.0,0.00022054,2]
[372457454,1752649863625,-540.51,0.00022054,2]
[372457455,1752649863635,-460.0,0.00022054,2]
[372457456,1752649863644,-460.0,0.00022054,2]
[372457457,1752649863655,-460.0,0.00022054,2]
[372457458,1752649863665,-752.3,0.00022054,2]
[372457459,1752649863675,-151.0,0.00022054,7]
[372457460,1752649863685,-151.0,0.00022054,7]
[372457461,1752649863694,-1936.78,0.00022054,2]
[372457462,1752649863704,-151.0,0.00022054,7]
[372457463,1752649863713,-151.0,0.00022054,7]
[372457464,1752649863723,-1114.07,0.00022054,2]
[372457465,1752649863732,-460.0,0.00022054,2]
[372457466,1752649863743,-460.0,0.00022054,2]
[372457467,1752649863752,-1140.36,0.00022054,2]
[372457468,1752649863762,-460.0,0.00022054,2]
[372457469,1752649863773,-460.0,0.00022054,2]
[372457470,1752649863782,-460.0,0.00022054,2]
[372457471,1752649863792,-410.566389,0.00022054,7]
[372457472,1752649863802,-465.04,0.00022054,2]
[372457473,1752649863811,-410.566389,0.00022054,7]
[372457474,1752649863822,-169.629455,0.00022054,7]
[372457475,1752649863832,-169.629455,0.00022054,7]
[372457476,1752649863841,-460.0,0.00022054,2]
[372457477,1752649863851,-764.17,0.00022054,2]
[372457478,1752649863860,-460.0,0.00022054,2]
[372457479,1752649863870,-169.629455,0.00022054,7]
[372457480,1752649863880,-1007.02,0.00022054,2]
[372457481,1752649863890,-460.0,0.00022054,2]
[372457482,1752649863899,-169.629455,0.00022054,7]
[372457483,1752649863908,-503.99,0.00022054,2]
[372457484,1752649863918,-410.566389,0.00022054,7]
[372457485,1752649863928,-410.566389,0.00022054,7]
[372457486,1752649863938,-460.0,0.00022054,2]
[372457487,1752649863948,-745.83,0.00022054,2]
[372457488,1752649863957,-499.11,0.00022054,2]
[372457489,1752649863967,-221.233231,0.00022054,7]
[372457490,1752649863977,-221.233231,0.00022054,7]
[372457491,1752649863987,-460.0,0.00022054,2]
[372457492,1752649863996,-615.59,0.00022054,2]
[372457493,1752649864006,-473.42,0.00022054,2]
[372457494,1752649864017,-221.233231,0.00022054,7]
[372457495,1752649864027,-221.233231,0.00022054,7]
[372457496,1752649864036,-460.0,0.00022054,2]
[372457497,1752649864046,-562.68,0.00022054,2]
[372457498,1752649864057,-1821.19,0.00022054,2]
[372457499,1752649864067,-171.3513901,0.00022054,2]
[372457500,1752649864076,-460.0,0.00022054,2]
[372457501,1752649864086,-460.0,0.00022054,2]
[372457502,1752649864096,-614.39,0.00022054,2]
[372457503,1752649864105,-460.0,0.00022054,2]
[372457504,1752649864115,-478.56,0.00022054,2]
[372457505,1752649864125,-1232.13,0.00022054,2]
[372457506,1752649864134,-462.29873041,0.00022054,2]
[372457507,1752649864144,-460.0,0.00022054,2]
[372457508,1752649864154,-460.0,0.00022054,2]
[372457509,1752649864163,-1788.73,0.00022054,2]
[372457510,1752649864172,-151.0,0.00022054,7]
[372457511,1752649864182,-151.0,0.00022054,7]
[372457512,1752649864192,-866.98,0.00022054,2]
[372457513,1752649864201,-877.99,0.00022054,2]
[372457514,1752649864211,-506.63755041,0.00022054,2]
[372457515,1752649864220,-460.0,0.00022054,2]
[372457516,1752649864230,-464.28123554,0.00022054,2]
[372457517,1752649864240,-1263.57,0.00022054,2]
[372457518,1752649864250,-2785.06,0.00022054,2]
[372457519,1752649864259,-460.0,0.00022054,2]
[372457520,1752649864270,-460.0,0.00022054,2]
[372457521,1752649864280,-752.03,0.00022054,2]
[372457522,1752649864289,-460.0,0.00022054,2]
[372457523,1752649864299,-818.15,0.00022054,2]
[372457524,1752649864308,-460.0,0.00022054,2]
[372457525,1752649864317,-460.0,0.00022054,2]
[372457526,1752649864327,-2916.59,0.00022054,2]
[372457527,1752649864336,-460.0,0.00022054,2]
[372457528,1752649864346,-460.0,0.00022054,2]
[372457529,1752649864355,-151.0,0.00022054,7]
[372457530,1752649864365,-151.0,0.00022054,7]
[372457531,1752649864374,-460.0,0.00022054,2]
[372457532,1752649864384,-470.76014089,0.00022054,2]
[372457533,1752649864393,-460.0,0.00022054,2]
[372457534,1752649864403,-460.0,0.00022054,2]
[372457535,1752649864412,-774.46,0.00022054,2]
[372457536,1752649864421,-151.0,0.00022054,7]
[372457537,1752649864431,-151.0,0.00022054,7]
[372457538,1752649864441,-151.0,0.00022054,7]
[372457539,1752649864451,-151.0,0.00022054,7]
[372457540,1752649864461,-151.0,0.00022054,7]
[372457541,1752649864471,-151.0,0.00022054,7]
[372457542,1752649864484,-460.0,0.00022054,2]
[372457543,1752649864496,-460.0,0.00022054,2]
[372457544,1752649864506,-460.0,0.00022054,2]
[372457545,1752649864515,-461.03122876,0.00022054,2]
[372457546,1752649864527,-821.25,0.00022054,2]
[372457547,1752649864536,-151.323722,0.00022054,7]
[372457548,1752649864546,-460.0,0.00022054,2]
[372457549,1752649864557,-151.0,0.00022054,7]
[372457550,1752649864568,-460.0,0.00022054,2]
[372457551,1752649864578,-1571.48,0.00022054,2]
[372457552,1752649864587,-151.0,0.00022054,7]